bitfinex/quotes_ETHUSD_20260131
["timestamp","ask_amount","ask_price","bid_price","bid_amount"]
[1769876816598,0.98595993,2535.6,2534.1,0.01571462]
[1769876816799,0.98595993,2535.6,2534.0,0.0011]
[1769876817196,0.98595993,2535.6,2534.1,0.01571462]
[1769876817398,0.98580441,2536.0,2534.3,0.2335703]
[1769876817700,3.94321766,2536.1,2534.6,0.01571462]
[1769876817701,0.98579138,2536.1,2534.6,0.01571462]
[1769876818080,0.98579138,2536.1,2534.7,0.98631001]
[1769876818281,0.98579138,2536.1,2534.8,0.01571462]
[1769876818516,0.98579138,2536.1,2534.7,0.98631001]
[1769876818736,0.98579138,2536.1,2534.7,1.00202463]
[1769876818897,0.98579138,2536.1,2534.8,0.49472647]
[1769876819398,0.001,2536.2,2534.9,0.01571462]
[1769876819792,0.001,2536.2,2535.1,0.01571462]
[1769876820092,0.001,2536.2,2535.2,0.98611549]
[1769876820303,0.001,2536.2,2535.3,0.49305775]
[1769876820911,0.001,2536.2,2535.2,0.98611549]
[1769876820912,0.1034,2536.2,2534.8,0.49472647]
[1769876821218,15.8438964,2536.2,2534.6,0.98632687]
[1769876821527,15.72478178,2535.7,2534.2,0.0011]
[1769876821823,15.72478178,2535.2,2533.8,0.98776021]
[1769876821990,2.373,2535.0,2533.8,0.0011]
[1769876822196,13.68769722,2534.9,2533.8,0.0011]
[1769876822393,15.72478178,2534.8,2533.0,0.9880433]
[1769876822601,15.72478178,2534.8,2533.1,0.98692618]
[1769876822905,0.33591544,2534.9,2533.0,0.0011]
[1769876822906,13.35178178,2534.3,2533.0,0.0011]
[1769876823109,0.33591544,2534.9,2533.0,0.0011]
[1769876823110,13.35178178,2534.1,2533.0,0.0011]
[1769876823430,1.66541818,2534.0,2533.0,0.0011]
[1769876823600,0.827,2534.2,2533.0,0.0011]
[1769876823997,0.98654354,2534.1,2533.0,0.0011]
[1769876824196,0.98654354,2534.1,2533.0,0.98804758]
[1769876824519,0.98634893,2534.6,2533.0,0.98804758]
[1769876824827,15.18013442,2534.5,2533.0,0.0011]
[1769876825028,0.1024,2534.1,2533.0,0.0011]
[1769876825400,13.45418178,2534.1,2531.9,3.96517997]
[1769876825600,13.45418178,2534.1,2531.9,0.98736276]
[1769876825796,13.35178178,2533.7,2531.9,0.98740022]
[1769876826000,13.35178178,2533.7,2531.8,3.94975858]
[1769876826342,14.33852001,2533.6,2531.8,3.94975858]
[1769876826537,14.33852001,2533.6,2530.8,1.41288253]
[1769876826538,13.35178178,2533.2,2530.8,1.41288253]
[1769876826838,0.98673823,2533.6,2531.5,1.0032555]
[1769876826839,14.37382119,2533.1,2531.5,1.0032555]
[1769876827018,0.1024,2533.0,2531.3,1.00333962]
[1769876827324,13.85540301,2533.1,2531.3,0.01571462]
[1769876827525,13.13080301,2533.0,2531.1,0.01571462]
[1769876827741,13.13080301,2533.0,2530.8,1.41288253]
[1769876828036,13.13080301,2532.8,2530.9,1.00350524]
[1769876828197,0.98708887,2532.7,2531.3,0.01571462]
[1769876828399,0.98708887,2532.7,2531.1,0.01571462]
[1769876828603,0.98708887,2532.7,2531.3,0.01571462]
[1769876828814,0.98708887,2532.7,2531.5,0.01571462]
[1769876829019,0.98707573,2532.8,2531.6,0.01571462]
[1769876829218,0.98697196,2533.0,2531.5,0.01571462]
[1769876829429,1.56314387,2533.0,2531.5,0.01571462]
[1769876829619,0.57617191,2533.0,2531.6,0.01571462]
[1769876829823,1.81395887,2533.1,2531.8,0.01571462]
[1769876830018,1.81395887,2533.1,2531.6,0.01571462]
[1769876830326,1.81395887,2533.1,2531.7,0.98747876]
[1769876830532,1.81395887,2533.1,2531.6,0.98749443]
[1769876830840,0.98662141,2533.9,2532.3,0.01571462]
[1769876831005,0.98662141,2533.9,2532.5,0.01571462]
[1769876831202,1.81925674,2534.3,2532.9,0.01571462]
[1769876831403,0.00577675,2534.3,2533.0,0.01571462]
[1769876831600,0.99224643,2534.3,2532.7,0.01571462]
[1769876831801,0.001,2533.4,2533.0,0.01571462]
[1769876832026,0.99224643,2534.3,2532.7,1.31005514]
[1769876832332,0.99224643,2534.3,2533.0,0.98697196]
[1769876832512,0.99224643,2534.3,2532.9,1.00270666]
[1769876832711,0.99224643,2534.3,2532.9,0.98699204]
[1769876832918,1.48605492,2534.3,2533.0,0.49350358]
[1769876833127,1.48605492,2534.3,2532.2,3.94906077]
[1769876833128,1.48605492,2534.3,2532.9,0.98700655]
[1769876833634,0.00577675,2534.3,2533.0,0.01571462]
[1769876833833,0.00577675,2534.3,2532.9,13.89898253]
[1769876834034,0.99227454,2534.3,2532.7,0.01571462]
[1769876834212,0.99227454,2534.3,2532.9,0.98700234]
[1769876834418,0.98654354,2534.1,2532.9,0.01571462]
[1769876834618,0.98654354,2534.1,2532.8,0.9870499]
[1769876835526,0.98654354,2534.1,2532.5,0.98712843]
[1769876835749,0.98654354,2534.1,2532.3,0.98721348]
[1769876835911,13.02840301,2533.9,2531.9,0.01571462]
[1769876836110,13.02840301,2533.9,2532.2,0.98726442]
[1769876836310,13.02840301,2533.9,2531.9,0.98740076]
[1769876836311,0.98666035,2533.8,2531.9,0.98740076]
[1769876836540,14.01506336,2533.8,2531.9,0.98740076]
[1769876836712,1.79617048,2533.7,2531.9,1.87776611]
[1769876836908,14.82457349,2533.7,2531.9,0.89036535]
[1769876837108,0.1024,2533.6,2531.8,0.0011]
[1769876837331,0.1024,2533.6,2531.9,0.01571462]
[1769876837836,0.98666035,2533.8,2531.9,0.01571462]
[1769876838345,0.98666035,2533.8,2532.2,0.01571462]
[1769876838511,0.98662141,2533.9,2532.4,0.01571462]
[1769876838717,0.63027602,2533.8,2532.4,0.49676532]
[1769876839042,2.373,2533.7,2531.8,0.0011]
[1769876839209,15.40140301,2533.6,2531.8,0.0011]
[1769876839918,15.40140301,2533.6,2531.9,0.98737863]
[1769876840110,13.13080301,2533.5,2531.8,0.0011]
[1769876840311,2.373,2533.6,2531.5,0.0011]
[1769876840312,13.02840301,2532.7,2531.5,0.0011]
[1769876840630,2.28996815,2532.6,2531.5,0.0011]
[1769876840944,15.31837116,2532.6,2531.5,0.0011]
[1769876841157,13.14651763,2532.5,2530.6,1.31815522]
[1769876841328,0.98712785,2532.6,2530.9,0.01571462]
[1769876841645,14.90394593,2532.6,2530.7,0.98786896]
[1769876841812,14.91966055,2532.6,2530.7,0.98786896]
[1769876842015,13.13080301,2532.5,2530.6,2.30602474]
[1769876842214,0.01571462,2532.4,2530.6,2.30605029]
[1769876842438,0.98728378,2532.2,2530.8,0.98782993]
[1769876842649,1.81426663,2532.3,2530.8,0.98782993]
[1769876843333,0.827,2532.3,2530.9,0.24928492]
[1769876843545,3.94756472,2533.3,2531.4,0.01571462]
[1769876843840,0.49344198,2533.2,2531.6,0.01571462]
[1769876844032,0.49344198,2533.2,2531.3,0.01571462]
[1769876844236,3.94756472,2533.3,2531.7,0.01571462]
[1769876844413,3.94728742,2533.4,2531.8,0.98743976]
[1769876844615,1.61719228,2533.5,2531.9,0.01571462]
[1769876844831,1.61719228,2533.5,2531.9,0.51257743]
[1769876845041,1.61719228,2533.5,2531.9,0.49686281]
[1769876845562,1.61719228,2533.5,2531.9,13.42455341]
[1769876845847,1.61719425,2533.5,2532.1,0.01571462]
[1769876846016,1.61719425,2533.5,2531.9,13.40883879]
[1769876846358,1.61719425,2533.5,2532.0,1.43962786]
[1769876846642,1.61719425,2533.5,2532.1,0.98732277]
[1769876847562,13.02840301,2533.3,2531.9,0.49686281]
[1769876847771,13.02840301,2533.3,2531.2,3.95062064]
[1769876847772,0.01571462,2533.2,2531.2,3.95062064]
[1769876847972,0.01571462,2533.2,2531.6,0.98749154]
[1769876848119,0.01571462,2533.2,2531.2,0.98764867]
[1769876848120,13.13080301,2533.0,2531.2,0.98764867]
[1769876848318,13.04411763,2532.5,2530.8,0.0011]
[1769876848633,13.04411763,2532.5,2530.0,3.95247333]
[1769876848634,0.01571462,2530.7,2529.2,0.20524646]
[1769876848845,13.04411763,2530.2,2528.3,0.0175189]
[1769876849012,1.30441176,2530.1,2529.2,0.98844642]
[1769876849211,0.827,2530.6,2528.5,16.86681336]
[1769876849412,0.827,2530.6,2529.2,0.98845461]
[1769876849636,0.01571462,2530.5,2529.3,0.4942274]
[1769876849839,0.827,2530.6,2529.3,0.4942274]
[1769876850043,0.01571462,2529.8,2528.3,0.0175189]
[1769876850218,0.01571462,2529.8,2527.1,0.827]
[1769876850219,0.01571462,2529.1,2527.1,0.98927624]
[1769876850421,0.01571462,2528.1,2526.8,0.0011]
[1769876850622,0.01571462,2527.6,2526.8,0.0011]
[1769876850826,0.01571462,2528.2,2526.8,0.0011]
[1769876851034,3.97070134,2528.5,2526.8,0.0011]
[1769876851035,0.01571462,2528.4,2526.8,0.0011]
[1769876851220,0.51322401,2528.4,2526.8,0.0011]
[1769876851629,0.49750939,2528.4,2526.8,0.0011]
[1769876851828,13.04411763,2529.2,2526.8,0.0011]
[1769876851829,3.9542576,2529.0,2526.8,12.91307598]
[1769876852032,0.01571462,2528.7,2526.8,12.91307598]
[1769876852230,3.9542576,2529.0,2527.0,0.01571462]
[1769876852460,1.19287411,2529.3,2527.2,12.91197598]
[1769876852646,0.01571462,2528.8,2527.3,1.2911976]
[1769876852976,13.04411763,2528.2,2526.8,0.0011]
[1769876853122,13.04411763,2528.8,2527.1,0.9892744]
[1769876853446,0.01571462,2528.2,2526.8,0.0011]
[1769876853747,0.01571462,2528.6,2526.8,0.0011]
[1769876853748,0.01571462,2528.1,2526.8,0.0011]
[1769876853915,0.01571462,2528.1,2527.0,3.9571059]
[1769876854122,0.01571462,2528.4,2526.8,0.0011]
[1769876854320,0.01571462,2528.4,2526.9,0.98932508]
[1769876854537,0.01571462,2528.4,2526.8,0.0011]
[1769876854716,0.01571462,2528.2,2526.8,0.0011]
[1769876854928,0.5132609,2528.2,2526.8,0.0011]
[1769876856036,3.95459288,2528.8,2526.8,0.0011]
[1769876856345,0.98845484,2529.2,2527.2,12.91197598]
[1769876856651,0.98845484,2529.2,2527.3,0.98919795]
[1769876856949,3.95241294,2530.2,2528.2,0.01571462]
[1769876857148,3.95241294,2530.2,2527.5,0.01571462]
[1769876857149,14.29598465,2530.1,2527.9,0.01571462]
[1769876857357,0.1024,2530.0,2527.9,0.01571462]
[1769876857520,14.29598465,2530.1,2528.1,0.01571462]
[1769876857844,0.39680365,2530.1,2528.3,0.01571462]
[1769876858152,0.98806418,2530.2,2528.3,0.01571462]
[1769876858316,0.98806418,2530.2,2528.5,0.01571462]
[1769876858515,0.98806418,2530.2,2528.8,0.01571462]
[1769876858716,13.899181,2530.7,2528.9,0.9885721]
[1769876858924,13.899181,2530.7,2528.8,0.98859194]
[1769876859149,3.95163202,2530.9,2529.1,0.01571462]
[1769876859455,3.95163202,2530.9,2529.2,0.01571462]
[1769876859652,0.56826888,2530.8,2529.1,0.01571462]
[1769876859819,14.001581,2530.7,2528.7,0.01571462]
[1769876860022,14.001581,2530.7,2528.6,0.98867058]
[1769876860331,14.001581,2530.5,2528.8,0.98860188]
[1769876860652,0.1024,2530.5,2528.9,0.01571462]
[1769876860826,0.98798608,2530.4,2528.9,1.00426275]
[1769876861154,14.26120339,2530.4,2528.7,0.98863093]
[1769876861370,0.50423304,2530.3,2528.7,1.48298528]
[1769876861661,0.50423304,2530.3,2528.7,0.49435435]
[1769876861871,13.77745035,2530.3,2528.6,0.98865245]
[1769876862029,0.50423304,2530.3,2528.9,1.00428324]
[1769876862235,0.50423304,2530.3,2528.5,0.01571462]
[1769876862536,0.50423304,2530.3,2528.9,0.98856388]
[1769876862739,0.98806418,2530.2,2528.9,1.484422]
[1769876862927,1.49226711,2530.3,2529.0,0.01571462]
[1769876863130,0.98786896,2530.7,2529.2,0.01571462]
[1769876863331,0.98786896,2530.7,2529.4,0.01571462]
[1769876863558,0.74326585,2531.0,2529.7,0.01571462]
[1769876863759,1.73102689,2531.0,2529.8,0.01571462]
[1769876863961,1.73104003,2531.0,2529.8,0.01571462]
[1769876864349,1.73104003,2531.0,2529.5,0.01571462]
[1769876864350,1.73104003,2531.0,2529.9,0.01571462]
[1769876864533,0.74326585,2531.0,2529.9,0.01571462]
[1769876864732,0.74326585,2531.0,2530.2,0.98806418]
[1769876864979,0.74326585,2531.0,2530.3,0.01571462]
[1769876865169,3.95011871,2531.6,2530.2,0.49406241]
[1769876865342,3.95011871,2531.6,2530.1,0.98807868]
[1769876865543,3.95011871,2531.6,2530.1,1.0037933]
[1769876866154,3.95011871,2531.6,2530.3,0.01571462]
[1769876866358,0.828,2531.7,2530.5,0.01571462]
[1769876866558,0.828,2531.7,2530.3,0.01571462]
[1769876866559,1.8154799,2531.7,2530.3,0.01571462]
[1769876866764,1.8154799,2531.7,2530.5,0.01571462]
[1769876866958,1.8154799,2531.7,2530.5,0.51285059]
[1769876867160,1.8154799,2531.7,2530.5,0.49713597]
[1769876867495,3.94847714,2532.7,2530.4,0.98798608]
[1769876867496,0.98728378,2532.2,2530.6,0.01571462]
[1769876867650,0.98728378,2532.2,2530.4,1.0037007]
[1769876867853,0.49374189,2532.1,2530.5,0.49557566]
[1769876868052,0.49374189,2532.1,2530.3,0.98799529]
[1769876868772,0.98736176,2532.0,2530.5,0.98794704]
[1769876869075,0.98736176,2532.0,2530.4,0.98796414]
[1769876869243,0.54305507,2531.9,2530.5,0.49400636]
[1769876869638,0.54305507,2531.9,2528.8,3.95431179]
[1769876869639,0.1024,2531.6,2529.3,0.01571462]
[1769876869861,0.1024,2531.6,2529.8,0.9881889]
[1769876870074,0.1024,2531.6,2529.3,3.96933716]
[1769876870275,0.1024,2531.6,2530.0,0.98812876]
[1769876870447,0.1024,2531.6,2529.9,0.98816819]
[1769876870448,1.43996173,2531.6,2529.9,0.98816819]
[1769876870772,1.43996173,2531.6,2529.9,0.98817811]
[1769876870953,0.98755678,2531.5,2529.8,0.98822041]
[1769876871146,0.63777456,2531.4,2529.9,0.49569432]
[1769876871543,0.63777456,2531.4,2529.7,0.98825309]
[1769876872079,0.63777456,2531.4,2529.7,1.00396771]
[1769876872576,0.1024,2531.3,2529.5,0.01571462]
[1769876872872,0.98767383,2531.2,2529.7,0.98825857]
[1769876873050,0.98767383,2531.2,2529.8,0.01571462]
[1769876873452,0.98767383,2531.2,2529.7,0.98825857]
[1769876873658,0.98767383,2531.2,2529.8,0.51141573]
[1769876874054,0.98767383,2531.2,2530.0,0.01571462]
[1769876874249,0.98767383,2531.2,2529.8,0.51141573]
[1769876874446,0.98767383,2531.2,2529.7,0.98825857]
[1769876874658,0.98767383,2531.2,2529.8,0.01571462]
[1769876875149,0.98767383,2531.2,2529.9,0.98818135]
[1769876875780,0.98767383,2531.2,2529.9,1.00389597]
[1769876875980,0.828,2531.3,2530.1,0.01571462]
[1769876876151,1.81563603,2531.3,2529.9,0.98818135]
[1769876876479,1.81563603,2531.3,2529.7,0.98825347]
[1769876876676,2.373,2531.2,2529.6,0.9882927]
[1769876877047,3.36071285,2531.1,2529.2,1.00416946]
[1769876877881,0.1024,2530.7,2528.8,0.98858279]
[1769876878073,0.73115643,2531.0,2529.1,1.00419402]
[1769876878275,1.55915643,2531.0,2529.3,0.01571462]
[1769876878480,0.73115643,2531.0,2529.3,0.01571462]
[1769876878785,0.73115643,2531.0,2529.6,0.01571462]
[1769876878954,0.73115643,2531.0,2529.4,0.01571462]
[1769876879150,0.73115643,2531.0,2529.3,0.98841485]
[1769876879151,3.3607909,2530.9,2529.3,0.98841485]
[1769876879356,3.3607909,2530.9,2529.4,0.98837039]
[1769876879557,3.3607909,2530.9,2529.3,0.98839506]
[1769876879764,3.3607909,2530.9,2529.3,0.98840473]
[1769876880081,3.17731109,2530.8,2529.4,0.98837129]
[1769876880280,3.17731109,2530.8,2529.2,3.96952847]
[1769876880281,3.17731109,2530.8,2529.3,0.98837885]
[1769876880452,3.17731109,2530.8,2529.4,0.98837155]
[1769876880856,0.80431109,2530.8,2529.5,0.01571462]
[1769876881080,0.98786896,2530.7,2529.6,0.98829854]
[1769876881395,1.71892027,2531.0,2529.7,0.01571462]
[1769876881612,0.98768824,2531.2,2530.1,0.01571462]
[1769876881896,0.98768824,2531.2,2529.9,0.01571462]
[1769876881897,15.64621731,2531.4,2529.5,1.48408668]
[1769876882077,1.56462173,2531.3,2529.6,0.54375569]
[1769876882281,0.001,2531.2,2529.6,0.54375569]
[1769876882868,0.001,2531.2,2529.7,0.01571462]
[1769876883079,0.98867383,2531.2,2529.8,0.98822041]
[1769876883279,0.88769909,2531.1,2529.9,0.01571462]
[1769876883557,0.98867383,2531.2,2529.8,0.55005724]
[1769876884064,0.98867383,2531.2,2529.3,13.33564886]
[1769876884404,0.98867383,2531.2,2528.5,4.79862641]
[1769876884405,2.4754,2531.1,2529.4,0.98834509]
[1769876884764,2.4754,2531.1,2529.5,0.9883365]
[1769876885083,2.4754,2531.1,2529.4,0.98835491]
[1769876885084,0.34640738,2531.0,2529.4,0.98835491]
[1769876885277,2.373,2530.6,2528.7,0.98865019]
[1769876885477,2.373,2530.4,2528.7,3.95448634]
[1769876885680,15.64621731,2530.4,2528.3,13.33564886]
[1769876885878,2.6931,2530.3,2528.6,0.9886798]
[1769876886190,2.6931,2530.3,2527.7,17.30738358]
[1769876886191,13.27321731,2529.8,2527.7,17.30738358]
[1769876886403,13.27321731,2529.3,2527.3,0.0011]
[1769876886590,14.20361731,2529.2,2527.4,0.01571462]
[1769876886789,14.20361731,2529.2,2527.3,0.01681462]
[1769876887095,1.65766173,2529.1,2527.6,0.9890738]
[1769876887293,1.65766173,2529.1,2527.6,0.01571462]
[1769876887511,0.98806418,2530.2,2528.4,0.01571462]
[1769876887812,3.95124563,2530.9,2529.2,0.01571462]
[1769876887813,0.98782993,2530.8,2529.2,0.01571462]
[1769876888096,0.98782993,2530.8,2529.3,0.01571462]
[1769876888273,1.81580591,2530.9,2529.3,0.01571462]
[1769876888479,1.81580591,2530.9,2529.5,0.01571462]
[1769876888480,2.29373788,2530.9,2529.5,0.01571462]
[1769876888976,15.90997912,2530.7,2528.5,13.80099166]
[1769876889166,0.1024,2530.8,2528.2,0.01571462]
[1769876889167,0.1024,2530.4,2528.6,1.38167063]
[1769876889368,0.1024,2530.2,2528.5,0.98872849]
[1769876889807,13.63937912,2530.2,2527.6,0.01571462]
[1769876890096,14.14363169,2530.2,2528.4,0.98874914]
[1769876890294,14.14363169,2530.2,2528.2,0.9888291]
[1769876890603,14.14363169,2530.2,2528.5,0.01571462]
[1769876890767,0.50425257,2530.2,2528.5,0.01571462]
[1769876890966,0.50425257,2530.2,2528.5,0.49752614]
[1769876891169,13.53697912,2528.6,2527.3,0.0011]
[1769876891408,0.1024,2528.3,2527.3,0.0011]
[1769876891898,0.1984231,2528.4,2527.3,0.0011]
[1769876892796,0.01571462,2528.1,2526.0,0.0011]
[1769876892967,0.1024,2528.3,2526.3,0.98957813]
[1769876893174,0.11811462,2528.3,2526.0,0.0011]
[1769876893397,0.98884581,2528.2,2526.0,0.99078482]
[1769876893601,0.1024,2528.0,2526.0,0.99078482]
[1769876893810,0.1024,2528.0,2526.0,0.0011]
[1769876894015,13.53697912,2527.8,2526.0,0.0011]
[1769876894318,0.11811462,2527.7,2526.0,0.0011]
[1769876894887,0.11811462,2527.7,2527.6,0.0011]
[1769876895088,0.11811462,2527.7,2526.0,0.0011]
[1769876895284,0.1024,2527.5,2526.6,0.0011]
[1769876895514,1.43775174,2527.5,2526.6,0.0011]
[1769876895984,1.43775174,2527.5,2526.0,0.0011]
[1769876896185,0.60875174,2527.5,2526.0,0.0011]
[1769876896610,0.62446636,2527.5,2526.0,0.0011]
[1769876896815,0.60875174,2527.5,2526.0,0.0011]
[1769876897404,0.1024,2527.3,2526.0,0.0011]
[1769876897621,0.51228366,2527.3,2526.0,0.0011]
[1769876897932,0.1024,2527.1,2526.0,0.0011]
[1769876898288,0.98915881,2527.4,2526.0,13.80209166]
[1769876898691,0.9891358,2527.5,2526.1,0.01571462]
[1769876898890,3.9693545,2529.4,2526.1,0.01571462]
[1769876898891,3.95525619,2528.3,2526.8,13.80099166]
[1769876899123,3.95525619,2528.3,2526.9,0.01571462]
[1769876899429,0.98888493,2528.1,2526.9,0.01571462]
[1769876899628,3.95428842,2529.0,2527.1,13.81670628]
[1769876899923,3.95428842,2529.0,2526.9,1.13682895]
[1769876899924,0.1024,2528.9,2526.9,1.12111433]
[1769876900218,0.1024,2528.9,2527.2,0.01571462]
[1769876900438,0.1024,2528.9,2527.0,13.80099166]
[1769876900588,0.1024,2528.9,2526.8,14.80609909]
[1769876900792,0.1024,2528.9,2526.8,14.79038447]
[1769876901002,14.14389736,2528.9,2526.9,1.47903845]
[1769876901293,14.14389736,2528.9,2526.3,0.01571462]
[1769876901294,13.63937912,2528.7,2526.3,0.01571462]
[1769876901498,5.66853819,2528.8,2526.3,0.01571462]
[1769876901499,0.1024,2528.5,2526.3,0.01571462]
[1769876902043,0.1024,2528.5,2526.0,0.01681462]
[1769876902044,13.55269374,2528.3,2526.0,0.0011]
[1769876902196,1.73207607,2528.2,2526.0,17.76088111]
[1769876902390,0.1024,2528.1,2526.1,13.81670628]
[1769876902620,0.1024,2528.1,2526.2,14.80632641]
[1769876902826,0.1024,2528.1,2526.6,0.01571462]
[1769876903130,0.1024,2528.7,2526.4,13.80099166]
[1769876903299,0.1024,2528.7,2526.6,0.98947201]
[1769876903300,0.1024,2528.5,2526.6,0.98947201]
[1769876903496,13.63937912,2528.5,2526.5,1.38167063]
[1769876903697,13.63937912,2528.5,2526.3,0.98958404]
[1769876903953,13.63937912,2528.5,2526.2,0.98960739]
[1769876904101,0.1024,2528.3,2526.2,0.01571462]
[1769876904427,0.1024,2528.3,2526.7,0.01571462]
[1769876904631,13.88691912,2528.3,2526.0,0.0011]
[1769876904829,0.1024,2528.1,2526.4,0.98952286]
[1769876905068,0.1024,2528.1,2526.5,0.98949771]
[1769876905405,0.98892405,2528.0,2526.5,1.00521233]
[1769876906110,0.98892405,2528.0,2526.5,0.98950558]
[1769876906433,0.1024,2527.9,2526.2,13.80099166]
[1769876906734,2.373,2527.8,2526.3,1.38009917]
[1769876906904,0.1024,2527.7,2526.4,0.0011]
[1769876907423,2.373,2527.7,2526.4,0.0011]
[1769876907829,0.1024,2527.6,2526.4,0.0011]
[1769876909125,2.373,2527.7,2526.4,0.0011]
[1769876909843,0.98908055,2527.6,2526.4,0.0011]
[1769876910022,2.86754028,2527.5,2526.4,0.0011]
[1769876911223,2.373,2527.5,2526.4,0.0011]
[1769876911542,3.9563222,2527.7,2526.4,0.0011]
[1769876911543,0.98906877,2527.7,2526.6,13.80099166]
[1769876911912,3.95542889,2528.2,2526.6,13.80099166]
[1769876911913,0.9887676,2528.4,2526.7,14.80613913]
[1769876912114,0.9887676,2528.4,2527.2,0.01571462]
[1769876912415,0.00737137,2528.5,2527.4,13.81670628]
[1769876912618,0.00737137,2528.5,2527.5,13.81670628]
[1769876913010,0.98822041,2529.8,2528.0,0.01571462]
[1769876913210,0.98822041,2529.8,2527.9,13.80099166]
[1769876913440,0.98822041,2529.8,2528.0,0.01571462]
[1769876913625,0.98818675,2529.9,2528.4,13.81670628]
[1769876913814,0.98818675,2529.9,2528.1,0.01571462]
[1769876914036,0.001,2530.0,2528.4,0.9887676]
[1769876914418,0.001,2530.0,2528.3,0.9888032]
[1769876914618,0.001,2530.0,2528.4,0.49441604]
[1769876915244,0.1034,2530.0,2527.8,0.98899526]
[1769876915415,0.1034,2530.0,2528.0,0.98892314]
[1769876915611,0.1034,2530.0,2527.9,13.80099166]
[1769876915845,0.1034,2530.0,2526.7,0.01571462]
[1769876915846,13.63937912,2529.8,2527.4,13.80099166]
[1769876916022,13.63937912,2529.6,2527.2,0.98922662]
[1769876916358,0.1024,2529.4,2527.5,13.80099166]
[1769876916716,0.1024,2529.4,2527.6,0.01571462]
[1769876917020,0.98825947,2529.7,2528.0,13.20434833]
[1769876917249,0.98825947,2529.7,2528.2,0.01571462]
[1769876917450,0.98825947,2529.7,2528.2,13.20434833]
[1769876917753,0.49412974,2529.6,2528.3,1.32043483]
[1769876918121,0.001,2530.0,2528.8,13.18863371]
[1769876918343,0.98917024,2530.0,2528.8,13.18863371]
[1769876918746,0.98917024,2530.0,2528.9,0.01571462]
[1769876919049,0.98917024,2530.0,2528.8,13.18863371]
[1769876919050,0.001,2529.2,2528.8,13.18863371]
[1769876919250,0.98917024,2530.0,2528.8,13.18863371]
[1769876919451,0.98917024,2530.0,2528.5,0.01571462]
[1769876919650,0.98917024,2530.0,2528.3,0.98878574]
[1769876919955,0.98917024,2530.0,2528.3,1.00450036]
[1769876920133,0.001,2530.0,2528.3,1.00450036]
[1769876920332,0.001,2530.0,2528.4,1.81483609]
[1769876921363,0.001,2530.0,2528.0,3.95563805]
[1769876921364,13.34382281,2530.0,2527.5,13.63508981]
[1769876921543,13.46093743,2529.8,2527.5,14.60846753]
[1769876921717,0.1024,2529.6,2527.5,14.6084697]
[1769876921916,0.1024,2529.6,2527.6,1.46084697]
[1769876922115,0.98833761,2529.5,2527.6,2.4498928]
[1769876923268,0.98833761,2529.5,2528.2,13.61937519]
[1769876923763,0.98833761,2529.5,2527.6,2.4498928]
[1769876923940,0.59656881,2529.4,2527.7,1.04204799]
[1769876924136,0.98841576,2529.3,2527.7,1.04204799]
[1769876925341,0.98841576,2529.3,2527.7,2.03105191]
[1769876925649,0.98841576,2529.3,2527.7,2.03108791]
[1769876925852,0.1024,2529.1,2527.3,0.01571462]
[1769876926054,0.1024,2529.1,2527.1,0.98925093]
[1769876926256,0.1024,2529.1,2527.0,14.6244052]
[1769876926257,0.1024,2528.9,2527.0,14.6244052]
[1769876926625,0.1024,2528.9,2527.1,0.01571462]
[1769876926825,0.1024,2528.9,2527.1,13.63508981]
[1769876927051,0.60690651,2528.9,2527.2,1.46244052]
[1769876927953,0.60690651,2528.9,2526.9,0.98933129]
[1769876928145,0.60690651,2528.9,2526.9,1.00504591]
[1769876928458,0.1024,2528.7,2526.8,3.9574379]
[1769876928654,0.1024,2528.7,2526.9,0.01571462]
[1769876928959,0.1024,2528.7,2527.2,13.63508981]
[1769876929147,0.1024,2528.7,2527.3,1.36350898]
[1769876929354,0.98861119,2528.8,2527.4,13.61937519]
[1769876930569,0.98861119,2528.8,2527.4,14.6096115]
[1769876930730,0.98861119,2528.8,2527.4,0.0011]
[1769876931664,0.98861119,2528.8,2527.4,0.99025797]
[1769876931865,0.54475625,2528.7,2527.4,15.1043331]
[1769876932158,0.54475625,2528.7,2527.4,14.11517945]
[1769876932362,0.54475625,2528.7,2527.4,15.10433603]
[1769876932569,0.98868939,2528.6,2527.4,0.49580426]
[1769876932756,0.98868939,2528.6,2527.4,0.0011]
[1769876933260,0.98868939,2528.6,2527.4,0.99025464]
[1769876933565,0.98868939,2528.6,2527.4,0.99025693]
[1769876933866,0.98868939,2528.6,2527.4,14.60963212]
[1769876934034,0.98868939,2528.6,2527.4,0.99025601]
[1769876934240,1.93298547,2528.6,2527.4,0.99025601]
[1769876934676,0.98868939,2528.6,2527.4,0.0011]
[1769876935038,0.98868939,2528.6,2527.4,13.62047519]
[1769876936063,0.98868939,2528.6,2527.5,13.63508981]
[1769876936262,0.98868939,2528.6,2527.5,13.61937519]
[1769876937772,3.95475757,2528.8,2527.5,14.60845889]
[1769876938070,3.95475757,2528.8,2527.6,1.36204752]
[1769876938258,0.9885721,2528.9,2527.6,1.36204752]
[1769876939080,2.373,2528.8,2527.6,1.36204752]
[1769876939282,0.9885721,2528.9,2527.6,1.36204752]
[1769876939481,0.50452605,2528.8,2527.6,1.36204752]
[1769876939657,0.98865029,2528.7,2527.6,1.36204752]
[1769876939976,0.98865029,2528.7,2527.5,0.98911218]
[1769876939977,0.98865029,2528.7,2527.5,14.60846641]
[1769876940180,0.98865029,2528.7,2527.6,14.60844501]
[1769876940382,0.98849393,2529.1,2527.8,13.61937519]
[1769876941081,3.95497572,2529.2,2528.0,13.61937519]
[1769876941082,0.98947141,2529.2,2528.0,13.61937519]
[1769876941286,0.829,2529.7,2528.2,13.61937519]
[1769876941287,0.98841066,2529.4,2528.2,13.61937519]
[1769876941581,0.98824583,2529.8,2528.7,13.61937519]
[1769876941889,3.95388165,2530.0,2528.7,13.61937519]
[1769876941890,0.001,2530.0,2528.7,14.60800672]
[1769876942057,0.001,2530.0,2528.9,13.61937519]
[1769876942681,0.98810323,2530.1,2528.9,13.61937519]
[1769876942880,3.95241294,2530.2,2529.1,13.61937519]
[1769876942881,0.98808635,2530.2,2529.1,13.61937519]
[1769876943281,0.98786896,2530.7,2529.3,13.61937519]
[1769876943482,0.98786896,2530.7,2529.5,13.61937519]
[1769876943682,0.98786896,2530.7,2529.7,13.61937519]
[1769876943860,3.9518514,2531.2,2529.8,13.61937519]
[1769876944047,0.98771285,2531.1,2529.8,13.61937519]
[1769876944684,0.98771285,2531.1,2529.2,3.96942032]
[1769876944685,0.1024,2531.0,2528.8,14.60795369]
[1769876944870,2.17817871,2531.0,2528.9,1.46079537]
[1769876945079,13.44522281,2530.8,2528.8,13.61937519]
[1769876945586,0.1024,2530.8,2529.0,14.60790249]
[1769876945794,0.98786896,2530.7,2529.2,0.98842316]
[1769876945977,0.50417448,2530.6,2529.3,15.09744111]
[1769876946162,0.98786896,2530.7,2529.3,15.09744111]
[1769876946373,3.95088554,2531.1,2529.8,0.01571462]